bitfinex-derivatives/quotes_SOLF0:USTF0_20241127
["timestamp","ask_amount","ask_price","bid_price","bid_amount"]
[1732745344744,2.0803,240.02,239.95,2.68]
[1732745344936,9.92087978,240.05,239.95,2.0808]
[1732745345342,2.0805,240.0,239.93,2.64]
[1732745346338,9.92087978,240.05,239.93,2.64]
[1732745346546,2.0804,240.01,239.97,2.0807]
[1732745346942,9.92087978,240.05,239.93,2.64]
[1732745347143,9.92087978,240.05,239.96,2.0808]
[1732745347443,9.92087978,240.05,239.93,2.64]
[1732745347848,2.0805,240.01,239.97,2.0807]
[1732745348940,2.0802,240.04,240.0,2.0804]
[1732745349356,9.92087978,240.08,239.96,1.3231]
[1732745349545,2.08,240.06,240.01,2.0803]
[1732745349747,2.08,240.06,239.96,1.3231]
[1732745349948,2.08,240.06,239.99,2.0806]
[1732745350146,2.08,240.06,240.0,2.64]
[1732745350849,2.0803,240.02,239.98,2.0806]
[1732745351054,2.0803,240.02,239.96,1.3231]
[1732745351055,9.92087978,240.04,239.96,1.3231]
[1732745351252,9.92087978,240.04,239.93,2.64]
[1732745351456,9.92087978,240.04,239.95,2.0809]
[1732745351955,2.0804,240.01,239.97,2.0807]
[1732745352145,9.92087978,240.04,239.93,2.64]
[1732745353550,2.0805,240.0,239.96,2.0808]
[1732745358156,9.92087978,240.04,239.96,2.0808]
[1732745358359,2.0806,239.99,239.96,2.0808]
[1732745359568,2.0808,239.97,239.93,2.64]
[1732745359965,2.0808,239.97,239.91,2.0812]
[1732745360266,9.92087978,240.0,239.91,2.0812]
[1732745360675,1.2681,240.03,239.9,2.64]
[1732745360860,1.2681,240.03,239.9,12.56087978]
[1732745361868,1.2681,240.03,239.93,9.92087978]
[1732745362067,9.92087978,240.08,239.93,9.92087978]
[1732745362272,9.92087978,240.08,239.93,11.95259753]
[1732745362764,2.0802,240.04,239.99,2.0805]
[1732745362966,9.92087978,240.08,239.97,2.64]
[1732745363268,2.08,240.06,240.0,2.0804]
[1732745363470,1.2095,240.1,239.97,2.64]
[1732745364173,2.0801,240.04,239.97,2.64]
[1732745364568,2.0801,240.04,240.0,2.0805]
[1732745367563,9.92087978,240.08,239.97,2.64]
[1732745367767,2.0801,240.05,240.01,2.0803]
[1732745368173,9.92087978,240.08,240.01,2.0803]
[1732745368372,2.0801,240.04,239.97,2.64]
[1732745368564,9.92087978,240.08,239.97,2.64]
[1732745369573,2.0799,240.07,240.03,2.0802]
[1732745370873,2.64,240.33,240.05,9.92087978]
[1732745371175,3.6843,240.23,240.08,9.92087978]
[1732745371379,2.0792,240.15,240.09,2.64]
[1732745371574,2.0792,240.15,240.1,2.64]
[1732745371973,2.0791,240.17,240.1,2.64]
[1732745372268,3.6843,240.23,240.1,2.64]
[1732745372575,2.0793,240.14,240.1,2.64]
[1732745372883,9.92087978,240.21,240.1,2.64]
[1732745373082,2.0793,240.14,240.1,2.64]
[1732745373567,2.0788,240.19,240.14,2.0792]
[1732745373770,9.92087978,240.21,240.14,2.0792]
[1732745373977,3.6843,240.23,240.14,2.0792]
[1732745374379,2.0789,240.19,240.14,2.0792]
[1732745374878,2.0789,240.18,240.14,2.0792]
[1732745375371,3.6843,240.23,240.1,2.64]
[1732745375570,2.0789,240.19,240.1,2.64]
[1732745376374,2.0789,240.19,240.14,2.0792]
[1732745376968,3.6843,240.23,240.14,2.0792]
[1732745377169,2.0789,240.19,240.14,2.0792]
[1732745380673,2.0789,240.19,240.15,2.0792]
[1732745381074,2.0789,240.19,240.16,2.58]
[1732745381676,2.5699,240.23,240.16,2.58]
[1732745381883,92.64316754,240.4,240.21,6.38665453]
[1732745382175,6.38665453,240.3,240.23,6.38665453]
[1732745382375,2.0782,240.27,240.24,2.58]
[1732745383280,2.0783,240.25,240.24,2.58]
[1732745388679,9.9752844,240.29,240.2,2.0787]
[1732745388888,2.0785,240.23,240.21,2.58]
[1732745389177,2.0785,240.23,240.2,2.58]
[1732745389484,2.0785,240.23,240.2,4.6587]
[1732745389684,2.0788,240.2,240.11,9.9752844]
[1732745389881,9.9752844,240.26,240.12,2.58]
[1732745390083,9.9752844,240.26,240.15,2.0792]
[1732745390284,2.0789,240.18,240.15,2.0792]
[1732745390585,9.9752844,240.26,240.15,2.0792]
[1732745390885,2.0789,240.19,240.15,2.0792]
[1732745391080,9.9752844,240.2,240.09,39.09667536]
[1732745391281,2.0793,240.15,240.1,2.58]
[1732745392483,9.9752844,240.2,240.1,2.58]
[1732745392683,2.0791,240.16,240.12,2.0794]
[1732745392985,9.9752844,240.2,240.1,2.58]
[1732745393790,2.0792,240.16,240.11,2.0795]
[1732745394275,2.0792,240.15,240.11,2.0795]
[1732745394477,2.0792,240.15,240.1,2.58]
[1732745394783,2.0792,240.15,240.12,2.0794]
[1732745396382,2.0792,240.15,240.1,2.58]
[1732745396590,9.9752844,240.2,240.1,2.58]
[1732745396781,2.0791,240.16,240.1,2.58]
[1732745397290,2.0793,240.14,240.1,2.58]
[1732745397978,2.0793,240.14,240.11,2.0795]
[1732745398182,9.9752844,240.2,240.11,2.0795]
[1732745398386,2.0792,240.15,240.11,2.0795]
[1732745400584,2.0786,240.22,240.18,2.0789]
[1732745400989,2.607,240.27,240.17,2.58]
[1732745401492,2.0787,240.21,240.17,4.659]
[1732745402587,1.3094,240.28,240.19,9.9752844]
[1732745402991,2.0783,240.26,240.2,2.0787]
[1732745403184,1.3094,240.28,240.2,2.0787]
[1732745403988,2.0783,240.25,240.2,2.0787]
[1732745404787,2.0783,240.25,240.21,2.0786]
[1732745405490,1.3094,240.28,240.19,9.9752844]
[1732745405693,2.0782,240.26,240.22,2.0786]
[1732745405993,1.3094,240.28,240.19,9.9752844]
[1732745406590,9.9752844,240.32,240.19,9.9752844]
[1732745406786,1.2321,240.34,240.19,9.9752844]
[1732745406993,2.078,240.29,240.24,2.0784]
[1732745407193,1.2321,240.34,240.25,2.52]
[1732745407493,2.078,240.29,240.25,4.5983]
[1732745408484,9.9752844,240.32,240.19,12.0540844]
[1732745408689,9.9752844,240.29,240.2,2.52]
[1732745409389,2.0784,240.24,240.2,2.52]
[1732745410788,2.0784,240.24,240.2,4.5987]
[1732745411886,2.0783,240.26,240.2,4.5987]
[1732745412192,9.9752844,240.32,240.21,2.0786]
[1732745412599,3.7521,240.34,240.2,2.52]
[1732745412795,3.7521,240.34,240.23,2.0785]
[1732745413594,9.9752844,240.25,240.06,23.19558044]
[1732745413794,9.9752844,240.25,240.09,9.9752844]
[1732745414097,9.9752844,240.22,240.09,9.9752844]
[1732745414296,9.9752844,240.22,240.12,2.0794]
[1732745414297,2.0791,240.17,240.12,2.0794]
[1732745416895,9.9752844,240.22,240.09,9.9752844]
[1732745417100,2.0792,240.15,240.1,2.0796]
[1732745417495,9.9752844,240.22,240.1,2.0796]
[1732745417698,2.0795,240.12,240.08,2.0797]
[1732745417898,2.6588,240.24,240.08,2.52]
[1732745417899,9.9752844,240.16,240.08,2.52]
[1732745418193,2.0797,240.09,240.08,2.52]
[1732745418900,9.9752844,240.16,240.06,2.52]
[1732745419395,2.0799,240.07,240.04,2.52]
[1732745419592,9.9752844,240.13,240.04,2.52]
[1732745419791,9.9752844,240.16,240.04,2.52]
[1732745420894,2.0796,240.1,240.04,2.52]
[1732745421098,9.9752844,240.16,240.04,2.52]
[1732745421803,2.0798,240.08,240.04,2.52]
[1732745421997,2.0798,240.08,240.02,2.24234]
[1732745421998,9.9752844,240.1,240.02,0.16214]
[1732745422507,1.2668,240.09,240.02,0.16214]
[1732745423103,2.0799,240.07,240.02,0.16214]
[1732745423306,1.2668,240.09,240.02,0.16214]
[1732745423704,3.7468,240.14,240.02,0.16214]
[1732745424502,1.2268,240.14,240.02,0.16214]
[1732745425109,2.0796,240.11,240.05,2.08]
[1732745425311,2.0796,240.11,240.06,2.52]
[1732745425510,1.2268,240.14,240.06,2.52]
[1732745425711,2.0799,240.07,240.06,2.52]
[1732745425909,2.0799,240.07,240.02,0.16214]
[1732745426914,2.0798,240.08,240.03,2.0802]
[1732745427214,9.9752844,240.12,240.02,0.16214]
[1732745427414,2.0799,240.07,240.02,2.24244]
[1732745427614,9.9752844,240.12,240.02,0.16214]
[1732745429409,2.0801,240.05,240.02,0.16214]
[1732745430413,9.9752844,240.09,240.02,0.16214]
[1732745431017,2.0802,240.03,240.02,0.16214]
[1732745431913,2.0799,240.07,240.02,0.16214]
[1732745432118,9.9752844,240.09,240.02,0.16214]
[1732745432823,2.0799,240.07,240.02,0.16214]
[1732745433015,9.9752844,240.09,240.02,0.16214]
[1732745434223,2.0801,240.04,240.02,0.16214]
[1732745434618,2.0801,240.04,239.99,2.44]
[1732745435719,2.08,240.06,240.01,2.0803]
[1732745435917,9.9752844,240.09,240.01,2.0803]
[1732745436317,9.9752844,240.09,239.99,4.5205]
[1732745437526,2.0802,240.04,240.0,2.0804]
[1732745438324,2.0802,240.04,239.92,2.26737722]
[1732745438325,9.9752844,240.06,239.98,2.44]
[1732745438824,2.0805,240.0,239.98,2.44]
[1732745439725,2.0804,240.01,239.98,2.44]
[1732745441330,12.4152844,240.12,239.98,2.44]
[1732745441726,2.0799,240.07,240.02,2.0802]
[1732745442027,12.4152844,240.12,240.02,2.0802]
[1732745442221,6.39286737,240.09,240.02,2.0802]
[1732745442616,2.08,240.06,240.01,8.47326737]
[1732745442821,2.08,240.06,240.01,6.39286737]
[1732745443427,2.0801,240.05,240.01,6.39286737]
[1732745443926,2.08,240.06,240.01,8.47316737]
[1732745444127,2.08,240.06,239.98,12.42894108]
[1732745444630,12.42894108,240.12,239.98,12.42894108]
[1732745445322,2.0798,240.08,240.03,2.0801]
[1732745445924,2.0798,240.08,240.04,2.0801]
[1732745446634,2.0797,240.1,240.06,2.0799]
[1732745447224,2.0795,240.11,240.05,2.08]
[1732745447426,2.5128,240.14,240.05,2.08]
[1732745447717,2.5128,240.14,240.06,2.0799]
[1732745447718,2.0796,240.1,240.06,2.0799]
[1732745448122,2.5128,240.14,240.04,2.44]
[1732745448331,2.0797,240.09,240.04,4.52]
[1732745448925,2.0797,240.09,240.05,2.08]
[1732745449926,2.0796,240.11,240.04,2.44]
[1732745450328,1.286,240.14,240.04,2.44]
[1732745450531,9.98894108,240.17,240.04,12.42894108]
[1732745450830,2.545,240.2,240.04,12.42894108]
[1732745451024,12.53394108,240.2,240.04,12.42894108]
[1732745451226,12.53394108,240.2,240.05,1.2626]
[1732745452931,2.0793,240.15,240.1,2.0795]
[1732745453134,12.53394108,240.2,240.1,4.5195]
[1732745453836,9.98894108,240.23,240.13,2.0793]
[1732745454332,9.98894108,240.23,240.12,2.0794]
[1732745455433,2.44,240.24,240.1,2.44]
[1732745455434,9.98894108,240.2,240.1,2.44]
[1732745456238,2.0793,240.14,240.1,2.44]
[1732745456433,2.0793,240.14,240.1,4.5196]
[1732745457028,2.0792,240.15,240.1,4.5196]
[1732745457731,2.0792,240.15,240.11,2.0795]
[1732745460331,2.0792,240.15,240.1,2.44]
[1732745460332,2.0794,240.13,240.1,2.44]
[1732745460530,9.98894108,240.17,240.09,2.44]
[1732745460932,2.0794,240.13,240.09,2.44]
[1732745461134,9.98894108,240.17,240.09,2.44]
[1732745464240,6.38955077,240.15,240.09,2.44]
[1732745465647,6.38955077,240.11,240.0,1.2322]
[1732745465843,6.38955077,240.09,240.01,8.76955077]
[1732745466045,2.0799,240.07,240.02,2.0803]
[1732745466738,2.0799,240.07,240.03,2.38]
[1732745466940,2.0799,240.07,240.03,4.4602]
[1732745467540,2.0799,240.07,240.03,10.84975077]
[1732745467744,2.0798,240.08,240.03,10.84975077]
[1732745467944,6.38955077,240.09,240.03,10.84975077]
[1732745468950,2.0799,240.07,240.03,10.84975077]
[1732745469750,6.38955077,240.09,240.03,10.84975077]
[1732745470051,6.38955077,240.11,240.03,8.76955077]
[1732745470346,2.0796,240.11,240.03,2.38]
[1732745470551,6.38955077,240.12,240.05,8.46955077]
[1732745471145,2.0797,240.1,240.06,2.0799]
[1732745471547,2.0797,240.1,240.05,6.38955077]
[1732745472952,2.0797,240.1,240.05,8.46955077]
[1732745473356,2.0797,240.1,240.05,6.38955077]
[1732745473951,2.0797,240.1,240.06,2.08]
[1732745474749,2.0798,240.09,240.05,6.38955077]
[1732745474953,6.38955077,240.12,240.04,2.08]
[1732745475149,6.38955077,240.12,240.04,8.46955077]
[1732745475653,6.38955077,240.12,240.04,6.38955077]
[1732745476853,2.0798,240.09,240.04,8.46955077]
[1732745477250,2.0798,240.09,240.04,6.38955077]
[1732745477452,2.0798,240.09,240.05,2.08]
[1732745477761,6.38955077,240.12,240.05,2.08]
[1732745477762,2.0796,240.1,240.05,2.08]
[1732745479253,3.8619,240.16,240.06,6.38955077]
[1732745479453,6.38955077,240.16,240.1,6.38955077]
[1732745479659,6.38955077,240.18,240.11,2.38]
[1732745479861,2.0788,240.19,240.14,2.0792]
[1732745480957,2.0789,240.18,240.14,2.0792]
[1732745481153,2.0789,240.18,240.11,8.76955077]
[1732745481154,6.38955077,240.2,240.13,2.0793]
[1732745481363,6.38955077,240.18,240.13,2.0793]
[1732745481759,2.079,240.17,240.13,2.0793]
[1732745484255,6.38955077,240.14,240.07,1.2434]
[1732745484561,6.38955077,240.12,240.08,2.38]
[1732745484955,2.0796,240.11,240.08,4.4598]
[1732745487465,6.38955077,240.14,240.08,4.4598]
[1732745487767,2.0795,240.12,240.08,4.4598]
[1732745489163,6.38955077,240.1,240.04,2.08]
[1732745489363,2.38,240.2,240.06,2.38]
[1732745489364,6.38955077,240.08,240.06,2.38]
[1732745489664,2.08,240.06,240.03,4.4602]
[1732745490066,6.38955077,240.08,240.03,2.38]
[1732745490260,2.0801,240.04,240.03,2.38]
[1732745490658,6.38955077,240.04,239.99,0.16765]
[1732745491262,2.0804,240.02,239.99,0.16765]
[1732745492773,2.0804,240.01,239.99,0.16765]
[1732745493668,6.38955077,240.04,239.99,0.16765]
[1732745493863,2.0805,240.0,239.99,0.16765]
[1732745495170,6.38955077,240.04,239.99,0.16765]
[1732745495868,2.0803,240.02,239.99,0.16765]
[1732745496268,6.38955077,240.04,239.99,0.16765]
[1732745497072,2.0804,240.01,239.99,0.16765]
[1732745497469,2.38,240.14,239.99,8.63770077]
[1732745497673,2.38,240.14,240.01,6.38955077]
[1732745497876,6.38955077,240.09,240.01,6.38955077]
[1732745498572,2.0798,240.09,240.05,6.38955077]
[1732745499275,2.0796,240.11,240.07,6.38955077]
[1732745499479,6.38955077,240.13,240.03,2.32]
[1732745499677,6.38955077,240.13,240.05,6.38955077]
[1732745499974,6.38955077,240.13,240.05,8.46955077]
[1732745500276,6.38955077,240.13,240.05,6.38955077]
[1732745500573,3.7857,240.18,240.05,6.38955077]
[1732745500874,6.38955077,240.13,240.05,6.38955077]
[1732745502078,2.0795,240.11,240.07,2.0799]
[1732745502581,2.0795,240.11,240.03,2.32]
[1732745502870,3.7857,240.18,240.03,2.32]
[1732745502871,2.0799,240.07,240.03,2.32]
[1732745503872,2.0799,240.07,240.03,4.4002]
[1732745505476,6.38955077,240.09,240.03,4.4002]
[1732745505677,6.38955077,240.11,240.03,10.78975077]
[1732745505877,6.38955077,240.09,240.03,2.32]
[1732745506075,2.0801,240.04,240.03,2.32]
[1732745506269,6.38955077,240.07,240.03,2.32]
[1732745506672,2.0801,240.05,240.03,2.32]
[1732745506869,6.38955077,240.09,240.03,2.32]
[1732745507070,6.38955077,240.07,240.03,2.32]
[1732745507275,2.0801,240.04,240.03,2.32]
[1732745508077,2.32,240.14,240.03,2.32]
[1732745508277,6.38955077,240.11,240.03,2.32]
[1732745508479,6.38955077,240.11,240.04,6.38955077]
[1732745509479,6.1057,240.18,240.04,6.38955077]
[1732745509672,6.1057,240.18,240.06,6.38955077]
[1732745509875,6.38955077,240.14,240.06,6.38955077]
[1732745510777,2.0796,240.1,240.06,8.46945077]
[1732745512279,6.38955077,240.12,240.06,6.38955077]
[1732745512678,6.38955077,240.12,240.03,8.70955077]
[1732745512887,2.0799,240.07,240.03,2.32]
[1732745513083,6.38955077,240.08,240.03,2.32]
[1732745513379,6.38955077,240.08,239.98,1.2116]
[1732745513380,6.38955077,240.06,239.98,1.2116]
[1732745513584,2.0801,240.05,240.0,2.0804]
[1732745514085,2.0801,240.05,240.0,8.46995077]
[1732745515281,2.0802,240.04,240.0,8.46995077]
[1732745515475,6.38955077,240.08,240.0,6.38955077]
[1732745515678,6.38955077,240.06,239.99,4.4005]
[1732745515878,6.38955077,240.04,239.99,2.32]
[1732745516486,2.0802,240.03,239.99,4.4005]
[1732745516884,6.38955077,240.04,239.99,2.32]
[1732745517890,2.0804,240.01,239.99,2.32]
[1732745518191,6.38955077,240.06,239.99,2.32]
[1732745518586,6.38955077,240.06,239.99,4.4005]
[1732745519185,2.0802,240.03,239.99,2.0805]
[1732745519388,2.0802,240.03,239.99,4.4005]
[1732745520386,3.7857,240.18,240.0,6.38955077]
[1732745520690,6.38955077,240.11,240.04,6.38955077]
[1732745520895,2.0798,240.08,240.04,6.38955077]
[1732745521193,6.38955077,240.09,240.02,8.46975077]
[1732745521687,2.0799,240.07,240.02,8.46975077]
[1732745522389,6.38955077,240.09,240.02,6.38955077]
[1732745522586,6.38955077,240.09,239.99,2.32]
[1732745522587,2.32,240.17,240.04,6.38955077]
[1732745522791,6.38955077,240.12,240.04,6.38955077]
[1732745523088,6.38955077,240.12,240.05,2.36]
[1732745523795,2.0797,240.09,240.05,2.36]
[1732745525791,6.38955077,240.1,240.05,2.36]
[1732745525792,2.0798,240.08,240.05,2.36]
[1732745525981,2.32,240.17,240.05,2.36]
[1732745526183,6.38955077,240.12,240.05,2.36]
[1732745526382,3.7857,240.18,240.07,6.38955077]
[1732745526585,6.38955077,240.16,240.09,6.38955077]
[1732745526989,2.0792,240.15,240.09,6.38955077]
[1732745527390,2.0792,240.15,240.09,8.46925077]
[1732745527790,2.0793,240.14,240.09,2.0797]
[1732745530097,2.0794,240.13,240.09,2.0797]
[1732745530593,8.46885077,240.14,240.09,2.0797]
[1732745531889,2.0794,240.13,240.09,2.0797]
[1732745532198,3.7857,240.18,240.07,6.38955077]
[1732745532391,2.0793,240.14,240.09,8.46915077]
[1732745532594,2.0793,240.14,240.09,2.0796]
[1732745532898,2.0793,240.14,240.07,6.38955077]
[1732745533088,6.38955077,240.15,240.09,6.38955077]
[1732745533291,2.0791,240.16,240.09,6.38955077]
[1732745533693,2.0791,240.16,240.12,2.0794]
[1732745533895,2.0791,240.16,240.12,4.4394]
[1732745534089,1.2306,240.24,240.13,6.38955077]
[1732745534394,6.38955077,240.21,240.14,2.0793]
[1732745534799,2.0788,240.19,240.14,2.0793]
[1732745535195,2.0786,240.22,240.17,6.38955077]
[1732745535399,6.38955077,240.27,240.19,6.38955077]
[1732745535691,6.38955077,240.3,240.23,6.38955077]
[1732745535997,2.078,240.28,240.23,8.74955077]
[1732745536196,6.38955077,240.3,240.24,2.0784]
[1732745536693,6.38955077,240.3,240.25,2.0783]
[1732745536891,1.2664,240.35,240.25,2.0783]
[1732745537199,2.0777,240.32,240.25,6.38955077]
[1732745537401,6.38955077,240.33,240.25,2.0782]
[1732745538501,8.46745077,240.31,240.25,2.0782]
[1732745538798,6.38955077,240.31,240.24,2.0784]
[1732745539002,6.38955077,240.31,240.23,8.74955077]
[1732745539296,6.38955077,240.28,240.23,2.36]
[1732745539597,1.2664,240.35,240.23,2.36]
[1732745539801,6.38955077,240.32,240.24,6.38955077]
[1732745539994,6.38955077,240.32,240.26,6.38955077]
[1732745540196,53.59746468,240.36,240.24,6.38955077]
[1732745540396,6.38955077,240.32,240.24,6.38955077]
[1732745540595,8.46735077,240.32,240.27,2.0781]
[1732745541000,2.0778,240.31,240.25,2.0782]
[1732745541607,2.0778,240.31,240.24,6.38955077]
[1732745541801,6.38955077,240.32,240.27,2.0781]
[1732745542396,6.38955077,240.34,240.28,2.078]
[1732745542698,6.38955077,240.35,240.29,2.36]
[1732745544004,2.0776,240.34,240.29,2.36]
[1732745545602,2.0774,240.36,240.31,2.0778]
[1732745546505,4.1512,240.57,240.35,6.38955077]
[1732745546805,6.38955077,240.47,240.39,6.38955077]
[1732745547004,2.0767,240.44,240.4,2.36]
[1732745548409,2.0766,240.45,240.4,2.36]
[1732745549006,2.0767,240.44,240.4,2.36]
[1732745550910,2.4741,240.53,240.4,2.36]
[1732745551109,8.86365077,240.53,240.44,6.38955077]
[1732745551305,1.2989,240.56,240.48,6.38955077]
[1732745551508,7.68845077,240.56,240.49,2.36]
[1732745551709,7.68845077,240.56,240.5,2.36]
[1732745552015,1.2989,240.56,240.49,2.36]
[1732745553111,2.076,240.53,240.49,2.36]
[1732745553306,9.95020272,240.61,240.49,2.36]
[1732745553508,1.2756,240.62,240.49,2.36]
[1732745553815,9.95020272,240.63,240.51,2.0761]
[1732745554209,9.95020272,240.63,240.52,2.0759]
[1732745554511,9.95020272,240.63,240.49,12.31020272]
[1732745554708,9.95020272,240.63,240.53,2.0759]
[1732745554709,2.0755,240.58,240.53,2.0759]
[1732745554908,2.0755,240.58,240.49,12.31020272]
[1732745554909,3.8297,240.68,240.52,9.95020272]
[1732745555113,3.8297,240.68,240.55,9.95020272]
[1732745555315,3.8297,240.68,240.58,2.0754]
[1732745555316,2.0749,240.65,240.58,2.0754]
[1732745555608,2.5416,240.68,240.56,2.34]
[1732745555811,2.075,240.64,240.57,2.0755]
[1732745556010,2.5416,240.68,240.58,9.95020272]
[1732745556208,1.2756,240.68,240.58,9.95020272]
[1732745556410,1.2756,240.68,240.6,2.0753]
[1732745556912,2.0749,240.65,240.59,2.0753]
[1732745557108,1.2756,240.68,240.58,2.34]
[1732745557311,1.2756,240.68,240.57,2.34]
[1732745557913,2.075,240.64,240.57,2.34]
[1732745558713,2.075,240.63,240.57,4.4155]
[1732745560219,2.075,240.63,240.57,2.34]
[1732745560819,1.2756,240.68,240.57,2.34]
[1732745561615,9.95020272,240.66,240.53,2.34]
[1732745561809,9.95020272,240.66,240.54,2.34]
[1732745562013,2.0753,240.6,240.54,2.34]
[1732745562213,9.95020272,240.66,240.54,2.34]
[1732745562623,2.0751,240.62,240.56,2.0756]
[1732745563117,9.95020272,240.66,240.54,2.34]
[1732745563914,2.0753,240.6,240.54,4.4158]
[1732745564115,9.95020272,240.63,240.54,2.34]
[1732745565219,2.0755,240.58,240.54,2.34]
[1732745565414,9.95020272,240.63,240.54,2.34]
[1732745566717,2.0754,240.59,240.54,2.34]
[1732745566922,9.95020272,240.63,240.54,2.34]
[1732745568024,9.95020272,240.63,240.48,2.52]
[1732745568025,9.95020272,240.57,240.48,2.52]
[1732745568224,9.95020272,240.6,240.48,2.52]
[1732745569717,2.0758,240.54,240.48,4.5963]
[1732745570621,9.95020272,240.6,240.48,2.52]
[1732745572027,2.0757,240.56,240.5,2.0761]
[1732745572520,9.95020272,240.6,240.48,2.52]
[1732745572727,2.0758,240.54,240.48,4.5963]
[1732745573317,9.95020272,240.6,240.48,4.5963]
[1732745573318,9.95020272,240.6,240.48,2.52]
[1732745573523,9.95020272,240.57,240.42,9.95020272]
[1732745573726,9.95020272,240.54,240.39,9.95020272]
[1732745573923,2.0762,240.49,240.42,2.0768]
[1732745574127,2.0762,240.49,240.4,2.52]
[1732745574331,9.95020272,240.54,240.4,2.52]
[1732745574627,2.0761,240.5,240.45,2.0766]
[1732745574821,1.2695,240.56,240.4,2.52]
[1732745575630,9.95020272,240.54,240.39,9.95020272]
[1732745575829,9.95020272,240.51,240.4,2.52]
[1732745576019,9.95020272,240.54,240.4,2.52]
[1732745576219,1.2695,240.56,240.42,9.95020272]
[1732745576423,1.2695,240.56,240.45,9.95020272]
[1732745576624,2.0758,240.54,240.48,2.0762]
[1732745576824,1.2695,240.56,240.48,2.0762]
[1732745577025,2.0758,240.55,240.48,2.0762]
[1732745577222,1.2695,240.56,240.48,2.0762]
[1732745577721,2.076,240.52,240.46,4.5964]
[1732745577925,1.2695,240.56,240.46,2.52]
[1732745578721,1.2695,240.56,240.49,2.0762]
[1732745578722,2.0758,240.55,240.49,2.0762]
[1732745578920,1.2695,240.56,240.46,2.52]
[1732745579525,1.2695,240.56,240.48,2.0763]
[1732745580734,1.2695,240.56,240.48,4.5963]
[1732745580735,2.0758,240.54,240.48,4.5963]
[1732745581035,2.0758,240.54,240.49,2.0762]
[1732745581233,2.0758,240.54,240.48,2.52]
[1732745581435,2.0758,240.54,240.48,4.5963]
[1732745582425,1.2695,240.56,240.48,2.52]
[1732745583528,2.0762,240.5,240.48,2.52]
[1732745584326,1.2695,240.56,240.48,2.52]
[1732745584532,2.076,240.53,240.48,2.52]
[1732745584737,1.2695,240.56,240.48,2.52]
[1732745585025,1.2695,240.56,240.49,2.0762]
[1732745585226,1.2806,240.61,240.48,12.47020272]
[1732745586529,1.2806,240.61,240.5,2.0761]
[1732745586530,2.0757,240.56,240.5,2.0761]
[1732745586833,1.2806,240.61,240.5,2.0761]
[1732745587334,1.2806,240.61,240.48,12.47020272]
[1732745587532,2.0759,240.53,240.48,12.47020272]
[1732745588033,2.0759,240.53,240.48,14.54650272]
[1732745588229,2.076,240.52,240.48,2.52]
[1732745588433,9.95020272,240.6,240.48,4.5963]
[1732745588831,2.0759,240.53,240.48,4.5963]
[1732745589729,2.0758,240.54,240.49,2.0762]
[1732745590124,2.0755,240.58,240.5,2.0761]
[1732745590324,11.23080272,240.61,240.5,2.0761]
[1732745590524,11.23080272,240.61,240.48,2.52]
[1732745590728,1.2806,240.61,240.48,12.47020272]
[1732745591327,1.2806,240.61,240.5,2.0761]
[1732745591928,2.0757,240.56,240.5,2.0761]
[1732745592533,2.0757,240.56,240.48,12.47020272]
[1732745592733,2.0757,240.56,240.51,2.076]
[1732745592931,1.3178,240.62,240.51,9.95020272]
[1732745593137,1.3178,240.62,240.55,2.0756]
[1732745593330,1.3178,240.62,240.54,2.52]
[1732745593538,2.0753,240.6,240.54,2.52]
[1732745593737,1.3178,240.62,240.51,9.95020272]
[1732745594041,1.3178,240.62,240.52,2.52]
[1732745594442,9.95020272,240.61,240.49,2.6125]
[1732745594739,2.0759,240.53,240.5,2.6]